[Event "*** Titled Tuesday Blitz"]
[Site "Chess.com"]
[Date "2018.10.02"]
[Round "1"]
[White "Siemba"]
[Black "Antifish7"]
[Result "0-1"]
[WhiteElo "2054"]
[BlackElo "2529"]
[TimeControl "180+2"]
[EndTime "13:08:16 PDT"]
[Termination "Antifish7 won by resignation"]

1. e4 {[%clk 0:02:59.1]} 1... c5 {[%clk 0:03:00.3]} 2. Nf3 {[%clk 0:02:51.1]}
2... d6 {[%clk 0:03:00.2]} 3. d4 {[%clk 0:02:51.4]} 3... cxd4 {[%clk 0:03:02.1]}
4. Nxd4 {[%clk 0:02:53.3]} 4... Nf6 {[%clk 0:03:02.1]} 5. Nc3 {[%clk 0:02:49.9]}
5... a6 {[%clk 0:03:03.1]} 6. Be3 {[%clk 0:02:32.1]} 6... e5 {[%clk 0:03:01.9]}
7. Nb3 {[%clk 0:02:31.1]} 7... Be7 {[%clk 0:03:01.4]} 8. f3 {[%clk 0:02:26.3]}
8... Be6 {[%clk 0:03:00.8]} 9. Qd2 {[%clk 0:02:23.2]} 9... h5 {[%clk 0:03:00.7]}
10. O-O-O {[%clk 0:02:17.7]} 10... Nbd7 {[%clk 0:02:59]} 11. Nd5 {[%clk
0:02:08.4]} 11... Nxd5 {[%clk 0:02:51.3]} 12. exd5 {[%clk 0:02:07.8]} 12... Bf5
{[%clk 0:02:52.9]} 13. Bd3 {[%clk 0:02:02.2]} 13... Bxd3 {[%clk 0:02:48.7]} 14.
Qxd3 {[%clk 0:02:04]} 14... Rc8 {[%clk 0:02:48.8]} 15. g4 {[%clk 0:01:53.4]}
15... Bg5 {[%clk 0:02:36.7]} 16. h4 {[%clk 0:01:43.2]} 16... Bxe3+ {[%clk
0:02:33.8]} 17. Qxe3 {[%clk 0:01:43.3]} 17... hxg4 {[%clk 0:02:35.7]} 18. fxg4
{[%clk 0:01:43.3]} 18... Rxh4 {[%clk 0:02:36.8]} 19. Qf2 {[%clk 0:01:34.3]}
19... Qg5+ {[%clk 0:02:24.4]} 20. Kb1 {[%clk 0:01:32.3]} 20... Rxh1 {[%clk
0:02:12.9]} 21. Rxh1 {[%clk 0:01:31.2]} 21... Qxg4 {[%clk 0:02:14.5]} 22. Na5
{[%clk 0:01:09.6]} 22... Qb4 {[%clk 0:01:54.7]} 23. Nb3 {[%clk 0:00:49.5]} 23...
Qe4 {[%clk 0:01:52.5]} 24. Rh8+ {[%clk 0:00:41.7]} 24... Nf8 {[%clk 0:01:52.9]}
25. Qh2 {[%clk 0:00:40.8]} 25... Rc4 {[%clk 0:01:32.1]} 26. a3 {[%clk
0:00:24.1]} 26... Ke7 {[%clk 0:01:13]} 27. Na5 {[%clk 0:00:19.1]} 27... Qe1+
{[%clk 0:01:12.3]} 28. Ka2 {[%clk 0:00:18.6]} 28... Qxa5 {[%clk 0:01:14.2]} 29.
Qg2 {[%clk 0:00:09.5]} 29... Ng6 {[%clk 0:00:49]} 30. Rb8 {[%clk 0:00:08.6]}
30... Qc7 {[%clk 0:00:43.2]} 31. Rh8 {[%clk 0:00:06.4]} 31... Rxc2 {[%clk
0:00:38.9]} 32. Qg5+ {[%clk 0:00:06.6]} 32... f6 {[%clk 0:00:40.4]} 33. Qxg6
{[%clk 0:00:07.1]} 33... Qc4+ {[%clk 0:00:40.7]} 34. Ka1 {[%clk 0:00:08.6]}
34... Rc1+ {[%clk 0:00:41.6]} 35. Qb1 {[%clk 0:00:10]} 35... Rxb1+ {[%clk
0:00:41.1]} 36. Kxb1 {[%clk 0:00:11.8]} 36... Qxd5 {[%clk 0:00:42.4]} 37. Ra8
{[%clk 0:00:11.9]} 37... e4 {[%clk 0:00:42.6]} 0-1

[Event "*** Titled Tuesday Blitz"]
[Site "Chess.com"]
[Date "2018.10.02"]
[Round "1"]
[White "AvitalBor"]
[Black "nochewycandy"]
[Result "1-0"]
[WhiteElo "2548"]
[BlackElo "2187"]
[TimeControl "180+2"]
[EndTime "13:08:20 PDT"]
[Termination "AvitalBor won by resignation"]

1. Nf3 {[%clk 0:03:01.3]} 1... g6 {[%clk 0:02:59.4]} 2. g3 {[%clk 0:03:01.8]}
2... Bg7 {[%clk 0:03:00.4]} 3. Bg2 {[%clk 0:03:02.4]} 3... Nf6 {[%clk
0:03:01.7]} 4. O-O {[%clk 0:03:03.7]} 4... O-O {[%clk 0:03:03.3]} 5. d4 {[%clk
0:03:04.9]} 5... c6 {[%clk 0:03:03.9]} 6. c3 {[%clk 0:03:01.8]} 6... d5 {[%clk
0:03:01.1]} 7. Nbd2 {[%clk 0:03:01.1]} 7... Nbd7 {[%clk 0:02:54.9]} 8. Re1
{[%clk 0:03:01.6]} 8... Re8 {[%clk 0:02:22]} 9. e4 {[%clk 0:02:59.8]} 9... dxe4
{[%clk 0:02:23.9]} 10. Nxe4 {[%clk 0:03:01]} 10... Nxe4 {[%clk 0:02:24.5]} 11.
Rxe4 {[%clk 0:03:00.9]} 11... Nf6 {[%clk 0:02:19.2]} 12. Re1 {[%clk 0:02:58.5]}
12... Qb6 {[%clk 0:02:11.4]} 13. Ne5 {[%clk 0:02:56.1]} 13... Be6 {[%clk
0:02:08.3]} 14. Qe2 {[%clk 0:02:37.3]} 14... Rad8 {[%clk 0:02:01.8]} 15. Bg5
{[%clk 0:02:33.4]} 15... Nd5 {[%clk 0:01:48.2]} 16. h3 {[%clk 0:02:23.2]} 16...
Nc7 {[%clk 0:01:18.7]} 17. Be3 {[%clk 0:02:17.6]} 17... Nd5 {[%clk 0:01:16.1]}
18. Bd2 {[%clk 0:02:03.6]} 18... Qxb2 {[%clk 0:00:37.4]} 19. Rab1 {[%clk
0:02:02.8]} 19... Qa3 {[%clk 0:00:38.9]} 20. Rxb7 {[%clk 0:01:56.7]} 20... Nxc3
{[%clk 0:00:22.4]} 21. Bxc3 {[%clk 0:01:48.7]} 21... Qxc3 {[%clk 0:00:23.5]} 22.
Nxc6 {[%clk 0:01:49.4]} 22... Rd7 {[%clk 0:00:21.7]} 23. Rxd7 {[%clk 0:01:16.4]}
23... Bxd7 {[%clk 0:00:23.6]} 24. d5 {[%clk 0:01:09.7]} 24... Bxc6 {[%clk
0:00:21.7]} 25. dxc6 {[%clk 0:01:09.8]} 25... Bf6 {[%clk 0:00:23.2]} 26. Rd1
{[%clk 0:01:09.6]} 26... Kg7 {[%clk 0:00:23.8]} 27. Qa6 {[%clk 0:01:04.9]} 27...
Be5 {[%clk 0:00:17.4]} 28. Qxa7 {[%clk 0:01:01.6]} 28... e6 {[%clk 0:00:12.1]}
29. Rd7 {[%clk 0:01:00.5]} 29... Rf8 {[%clk 0:00:12.5]} 30. c7 {[%clk
0:00:57.9]} 30... Qe1+ {[%clk 0:00:07.6]} 31. Kh2 {[%clk 0:00:57.6]} 31... h5
{[%clk 0:00:07.7]} 32. h4 {[%clk 0:00:50.4]} 32... Qb4 {[%clk 0:00:06.5]} 33.
Rd8 {[%clk 0:00:22.3]} 33... Qxh4+ {[%clk 0:00:04.3]} 34. Kg1 {[%clk 0:00:23.1]}
34... Qc4 {[%clk 0:00:02.8]} 35. Rxf8 {[%clk 0:00:21.8]} 35... Kxf8 {[%clk
0:00:04.7]} 36. Qa8+ {[%clk 0:00:22.8]} 1-0

[Event "*** Titled Tuesday Blitz"]
[Site "Chess.com"]
[Date "2018.10.02"]
[Round "1"]
[White "GMBenjaminFinegold"]
[Black "Blitzstream"]
[Result "0-1"]
[WhiteElo "2275"]
[BlackElo "2603"]
[TimeControl "180+2"]
[EndTime "13:08:27 PDT"]
[Termination "Blitzstream won by resignation"]

1. d4 {[%clk 0:03:01.8]} 1... Nf6 {[%clk 0:02:55.6]} 2. c4 {[%clk 0:03:02.3]}
2... c6 {[%clk 0:02:56.6]} 3. Nc3 {[%clk 0:03:02.2]} 3... d5 {[%clk 0:02:57.6]}
4. Nf3 {[%clk 0:03:02.4]} 4... e6 {[%clk 0:02:58.7]} 5. Bg5 {[%clk 0:03:02.7]}
5... h6 {[%clk 0:02:58]} 6. Bxf6 {[%clk 0:03:03.8]} 6... Qxf6 {[%clk 0:02:59.9]}
7. e3 {[%clk 0:03:05]} 7... Nd7 {[%clk 0:03:00.6]} 8. Bd3 {[%clk 0:03:05.4]}
8... dxc4 {[%clk 0:03:01.2]} 9. Bxc4 {[%clk 0:03:06]} 9... g6 {[%clk 0:03:02.8]}
10. O-O {[%clk 0:03:06.5]} 10... Bg7 {[%clk 0:03:04]} 11. Qe2 {[%clk 0:03:03.6]}
11... O-O {[%clk 0:03:04.6]} 12. Rad1 {[%clk 0:03:03.4]} 12... b5 {[%clk
0:03:00.8]} 13. Bb3 {[%clk 0:02:59]} 13... Bb7 {[%clk 0:03:01.8]} 14. e4 {[%clk
0:02:54]} 14... Qe7 {[%clk 0:02:57.9]} 15. e5 {[%clk 0:02:52.6]} 15... a6 {[%clk
0:02:49]} 16. Rfe1 {[%clk 0:02:52.7]} 16... Rfd8 {[%clk 0:02:43.5]} 17. Ne4
{[%clk 0:02:51.7]} 17... c5 {[%clk 0:02:44.6]} 18. Nxc5 {[%clk 0:01:45.5]} 18...
Nxc5 {[%clk 0:02:41.8]} 19. dxc5 {[%clk 0:01:47.4]} 19... Qxc5 {[%clk
0:02:40.1]} 20. h4 {[%clk 0:01:43.5]} 20... Bxf3 {[%clk 0:02:11.1]} 21. Qxf3
{[%clk 0:01:45.4]} 21... Bxe5 {[%clk 0:02:12.3]} 22. h5 {[%clk 0:01:42.2]} 22...
g5 {[%clk 0:02:13.2]} 23. Rc1 {[%clk 0:01:38.1]} 23... Qd4 {[%clk 0:02:01.3]}
24. Rc6 {[%clk 0:01:31.7]} 24... Qf4 {[%clk 0:01:55.6]} 25. Qxf4 {[%clk
0:01:28.9]} 25... Bxf4 {[%clk 0:01:56.7]} 26. g3 {[%clk 0:01:29.1]} 26... Bd6
{[%clk 0:01:52.7]} 27. Rd1 {[%clk 0:01:26.8]} 27... Be5 {[%clk 0:01:49.8]} 28.
Rxd8+ {[%clk 0:01:07.9]} 28... Rxd8 {[%clk 0:01:51.7]} 29. Rc2 {[%clk 0:01:09]}
29... Kg7 {[%clk 0:01:31.7]} 30. Kf1 {[%clk 0:01:08.7]} 30... Kf6 {[%clk
0:01:31.8]} 31. Ke2 {[%clk 0:01:09.5]} 31... Rd6 {[%clk 0:01:31.4]} 32. a4
{[%clk 0:01:07.9]} 32... bxa4 {[%clk 0:01:25.2]} 33. Bxa4 {[%clk 0:01:08.6]}
33... g4 {[%clk 0:01:26.2]} 34. b3 {[%clk 0:00:58]} 34... Bd4 {[%clk 0:01:11.6]}
35. Rc6 {[%clk 0:00:53.6]} 35... Rxc6 {[%clk 0:01:08.1]} 36. Bxc6 {[%clk
0:00:55.5]} 36... Kg5 {[%clk 0:00:55.8]} 37. Be8 {[%clk 0:00:55.9]} 37... f5
{[%clk 0:00:56.6]} 38. Bf7 {[%clk 0:00:52.4]} 38... e5 {[%clk 0:00:57.3]} 39.
Bg6 {[%clk 0:00:53.3]} 39... a5 {[%clk 0:00:52.8]} 40. Be8 {[%clk 0:00:54.1]}
40... Bc5 {[%clk 0:00:50.7]} 41. Bf7 {[%clk 0:00:54.9]} 41... f4 {[%clk
0:00:47.7]} 42. Be8 {[%clk 0:00:52.6]} 42... Bb6 {[%clk 0:00:40.1]} 43. Bf7
{[%clk 0:00:53.1]} 43... Kf6 {[%clk 0:00:39.7]} 44. Be8 {[%clk 0:00:53.9]} 44...
Ba7 {[%clk 0:00:40.9]} 45. Bd7 {[%clk 0:00:54.5]} 45... Kg5 {[%clk 0:00:41.9]}
46. Be8 {[%clk 0:00:55.8]} 46... Bb8 {[%clk 0:00:41.2]} 47. Bd7 {[%clk
0:00:55.9]} 47... f3+ {[%clk 0:00:37.7]} 48. Kf1 {[%clk 0:00:49.9]} 48... e4
{[%clk 0:00:39]} 49. Be8 {[%clk 0:00:46.3]} 49... e3 {[%clk 0:00:40.3]} 0-1

[Event "*** Titled Tuesday Blitz"]
[Site "Chess.com"]
[Date "2018.10.02"]
[Round "1"]
[White "Ramosha"]
[Black "Alexander_Moskalenko"]
[Result "1/2-1/2"]
[WhiteElo "2460"]
[BlackElo "2833"]
[TimeControl "180+2"]
[EndTime "13:08:37 PDT"]
[Termination "Game drawn by repetition"]

1. d4 {[%clk 0:03:00.8]} 1... d5 {[%clk 0:03:00.9]} 2. c4 {[%clk 0:03:01.8]}
2... c6 {[%clk 0:03:02.7]} 3. cxd5 {[%clk 0:03:03.3]} 3... Nf6 {[%clk
0:03:04.6]} 4. dxc6 {[%clk 0:03:03.6]} 4... Nxc6 {[%clk 0:03:05.6]} 5. Nf3
{[%clk 0:03:04.6]} 5... g6 {[%clk 0:03:02.5]} 6. Nc3 {[%clk 0:03:05]} 6... Bg7
{[%clk 0:03:03.8]} 7. e3 {[%clk 0:03:05.8]} 7... O-O {[%clk 0:03:05.1]} 8. Be2
{[%clk 0:03:06.9]} 8... b6 {[%clk 0:03:04]} 9. O-O {[%clk 0:03:07.4]} 9... Bb7
{[%clk 0:02:57.3]} 10. b3 {[%clk 0:03:06.6]} 10... e6 {[%clk 0:02:57.7]} 11. Bb2
{[%clk 0:03:06.5]} 11... Re8 {[%clk 0:02:58.8]} 12. Rc1 {[%clk 0:03:06.7]} 12...
Rc8 {[%clk 0:02:57.5]} 13. h3 {[%clk 0:02:57.7]} 13... Qd6 {[%clk 0:02:58]} 14.
Nb5 {[%clk 0:02:52]} 14... Qb8 {[%clk 0:02:58.7]} 15. Na3 {[%clk 0:02:48.8]}
15... Nb4 {[%clk 0:02:55.9]} 16. Rxc8 {[%clk 0:02:35.2]} 16... Rxc8 {[%clk
0:02:57.8]} 17. Qa1 {[%clk 0:02:25]} 17... a6 {[%clk 0:02:17.6]} 18. Rc1 {[%clk
0:02:20]} 18... b5 {[%clk 0:02:18.8]} 19. Bc3 {[%clk 0:02:06.8]} 19... Nbd5
{[%clk 0:02:09.2]} 20. Be1 {[%clk 0:02:01.3]} 20... Bf8 {[%clk 0:02:05.8]} 21.
Qb2 {[%clk 0:01:40.8]} 21... Ne4 {[%clk 0:01:38.1]} 22. Nb1 {[%clk 0:01:36.4]}
22... Rc7 {[%clk 0:01:32.8]} 23. Ba5 {[%clk 0:01:34.7]} 23... Rxc1+ {[%clk
0:01:27.1]} 24. Qxc1 {[%clk 0:01:36.6]} 24... b4 {[%clk 0:01:28.6]} 25. Bf1
{[%clk 0:01:06.6]} 25... Ndc3 {[%clk 0:01:22.7]} 26. Nxc3 {[%clk 0:01:06.7]}
26... Nxc3 {[%clk 0:01:24.6]} 27. a3 {[%clk 0:00:47.8]} 27... Qc8 {[%clk
0:01:10.8]} 28. Qa1 {[%clk 0:00:38.4]} 28... Bxf3 {[%clk 0:01:07.8]} 29. gxf3
{[%clk 0:00:39.5]} 29... Qb7 {[%clk 0:01:09]} 30. Bxb4 {[%clk 0:00:36.9]} 30...
Bxb4 {[%clk 0:01:10.9]} 31. axb4 {[%clk 0:00:37.8]} 31... Qxb4 {[%clk
0:01:12.4]} 32. Qxa6 {[%clk 0:00:37.8]} 32... Qxb3 {[%clk 0:01:13.8]} 33. Qc8+
{[%clk 0:00:38.1]} 33... Kg7 {[%clk 0:01:14.7]} 34. Qc4 {[%clk 0:00:38.6]} 34...
Qb2 {[%clk 0:01:14.9]} 35. e4 {[%clk 0:00:29.5]} 35... Nd1 {[%clk 0:01:08.5]}
36. Be2 {[%clk 0:00:30.3]} 36... Nc3 {[%clk 0:01:07.8]} 37. Bf1 {[%clk
0:00:31.4]} 37... Nd1 {[%clk 0:01:09]} 38. Be2 {[%clk 0:00:32]} 38... Nc3 {[%clk
0:01:10]} 39. Bf1 {[%clk 0:00:26.7]} 39... Qd2 {[%clk 0:01:11.3]} 40. Qc5 {[%clk
0:00:19.7]} 40... h5 {[%clk 0:01:04.5]} 41. Qe5+ {[%clk 0:00:20.2]} 41... Kg8
{[%clk 0:01:04.5]} 42. Qb8+ {[%clk 0:00:20.6]} 42... Kg7 {[%clk 0:01:05]} 43.
Qe5+ {[%clk 0:00:21.5]} 43... Kf8 {[%clk 0:01:06.4]} 44. Qd6+ {[%clk 0:00:21.5]}
44... Kg8 {[%clk 0:01:06.7]} 45. Qb8+ {[%clk 0:00:22]} 45... Kh7 {[%clk
0:01:05.8]} 46. Qc7 {[%clk 0:00:22.9]} 46... Kg8 {[%clk 0:00:44.8]} 47. Qb8+
{[%clk 0:00:23.4]} 47... Kg7 {[%clk 0:00:45.2]} 48. Qe5+ {[%clk 0:00:23.7]}
1/2-1/2

[Event "*** Titled Tuesday Blitz"]
[Site "Chess.com"]
[Date "2018.10.02"]
[Round "1"]
[White "Iball95"]
[Black "Jbd735"]
[Result "0-1"]
[WhiteElo "2579"]
[BlackElo "2303"]
[TimeControl "180+2"]
[EndTime "13:08:48 PDT"]
[Termination "Jbd735 won by checkmate"]

1. d4 {[%clk 0:02:59.1]} 1... d5 {[%clk 0:03:00.2]} 2. Bf4 {[%clk 0:03:00.4]}
2... c5 {[%clk 0:02:59.5]} 3. e3 {[%clk 0:03:01.6]} 3... Nf6 {[%clk 0:02:59.2]}
4. c3 {[%clk 0:03:02.6]} 4... Nc6 {[%clk 0:02:58.8]} 5. Nd2 {[%clk 0:03:03.7]}
5... e6 {[%clk 0:02:58.5]} 6. Ngf3 {[%clk 0:03:04.6]} 6... Bd6 {[%clk
0:02:56.4]} 7. Bg3 {[%clk 0:03:05.6]} 7... O-O {[%clk 0:02:45.7]} 8. Bd3 {[%clk
0:03:06.1]} 8... Qe7 {[%clk 0:02:21.1]} 9. Ne5 {[%clk 0:02:57.5]} 9... Bxe5
{[%clk 0:02:17.9]} 10. dxe5 {[%clk 0:02:59.4]} 10... Nd7 {[%clk 0:02:18.6]} 11.
Nf3 {[%clk 0:02:45.2]} 11... b6 {[%clk 0:02:01.9]} 12. h4 {[%clk 0:02:43.3]}
12... h6 {[%clk 0:01:58.2]} 13. h5 {[%clk 0:02:32.7]} 13... Bb7 {[%clk
0:01:55.3]} 14. Qe2 {[%clk 0:02:22.5]} 14... Rfc8 {[%clk 0:01:43.5]} 15. Rh4
{[%clk 0:02:21]} 15... a6 {[%clk 0:01:40.1]} 16. Rg4 {[%clk 0:02:11.4]} 16...
Kh8 {[%clk 0:01:31.5]} 17. Bh4 {[%clk 0:02:11.8]} 17... Qe8 {[%clk 0:01:23.2]}
18. Bg3 {[%clk 0:02:10.8]} 18... b5 {[%clk 0:01:13.8]} 19. Rd1 {[%clk
0:02:10.2]} 19... b4 {[%clk 0:01:00.7]} 20. Bb1 {[%clk 0:02:03.8]} 20... a5
{[%clk 0:00:51.6]} 21. Qc2 {[%clk 0:02:04.7]} 21... Nf8 {[%clk 0:00:52.2]} 22.
Bf4 {[%clk 0:01:16.8]} 22... Ba6 {[%clk 0:00:40]} 23. Nh4 {[%clk 0:00:50.7]}
23... Rab8 {[%clk 0:00:36.4]} 24. f3 {[%clk 0:00:50.5]} 24... Rb7 {[%clk
0:00:27.4]} 25. Kf2 {[%clk 0:00:49.8]} 25... Rcb8 {[%clk 0:00:26]} 26. b3 {[%clk
0:00:50.9]} 26... c4 {[%clk 0:00:24.5]} 27. e4 {[%clk 0:00:38.4]} 27... cxb3
{[%clk 0:00:21.3]} 28. axb3 {[%clk 0:00:40.3]} 28... bxc3 {[%clk 0:00:17.5]} 29.
Qxc3 {[%clk 0:00:39.9]} 29... Rxb3 {[%clk 0:00:16.6]} 30. Qd2 {[%clk 0:00:37.6]}
30... Rxb1 {[%clk 0:00:15.9]} 31. exd5 {[%clk 0:00:37]} 31... Rxd1 {[%clk
0:00:15.1]} 32. Qxd1 {[%clk 0:00:35.2]} 32... exd5 {[%clk 0:00:15.8]} 33. Qxd5
{[%clk 0:00:35.9]} 33... Ne6 {[%clk 0:00:16.1]} 34. Nf5 {[%clk 0:00:29.7]} 34...
a4 {[%clk 0:00:13.8]} 35. Qd2 {[%clk 0:00:24.2]} 35... Nxf4 {[%clk 0:00:10.1]}
36. Qxf4 {[%clk 0:00:22.4]} 36... Qxe5 {[%clk 0:00:09.8]} 37. Qxa4 {[%clk
0:00:22.5]} 37... Rb2+ {[%clk 0:00:09.7]} 38. Kg1 {[%clk 0:00:22.9]} 38... Rb1+
{[%clk 0:00:08.5]} 39. Kf2 {[%clk 0:00:20.3]} 39... Qe1# {[%clk 0:00:08.8]} 0-1

[Event "*** Titled Tuesday Blitz"]
[Site "Chess.com"]
[Date "2018.10.02"]
[Round "1"]
[White "Fins0905"]
[Black "Gerasimenyuk_Miha"]
[Result "1-0"]
[WhiteElo "2569"]
[BlackElo "2251"]
[TimeControl "180+2"]
[EndTime "13:08:51 PDT"]
[Termination "Fins0905 won by resignation"]

1. d4 {[%clk 0:03:01.2]} 1... d5 {[%clk 0:03:00.4]} 2. c4 {[%clk 0:03:01.8]}
2... Nc6 {[%clk 0:03:00.7]} 3. Nf3 {[%clk 0:03:02.1]} 3... e5 {[%clk 0:03:01.2]}
4. dxe5 {[%clk 0:03:01.1]} 4... d4 {[%clk 0:03:01.8]} 5. a3 {[%clk 0:03:02.5]}
5... a5 {[%clk 0:03:01.9]} 6. Nbd2 {[%clk 0:02:59.5]} 6... Nge7 {[%clk
0:03:01.4]} 7. Nb3 {[%clk 0:02:52.6]} 7... Nf5 {[%clk 0:02:56.5]} 8. Bg5 {[%clk
0:02:47.1]} 8... Be7 {[%clk 0:02:52.2]} 9. Bxe7 {[%clk 0:02:34.6]} 9... Qxe7
{[%clk 0:02:53.6]} 10. Nbxd4 {[%clk 0:02:24.3]} 10... Nfxd4 {[%clk 0:02:50]} 11.
Nxd4 {[%clk 0:02:24.2]} 11... Qxe5 {[%clk 0:02:38.5]} 12. e3 {[%clk 0:02:08.6]}
12... O-O {[%clk 0:02:28.1]} 13. Nxc6 {[%clk 0:01:47]} 13... bxc6 {[%clk
0:02:27.7]} 14. Qd4 {[%clk 0:01:47.7]} 14... Qg5 {[%clk 0:02:16.4]} 15. h4
{[%clk 0:01:34.7]} 15... Qg6 {[%clk 0:01:57.5]} 16. Bd3 {[%clk 0:01:14]} 16...
Qxg2 {[%clk 0:01:53.8]} 17. Be4 {[%clk 0:00:44.4]} 17... Qg4 {[%clk 0:01:48.2]}
18. Bxc6 {[%clk 0:00:45.1]} 18... Qxd4 {[%clk 0:01:43.4]} 19. exd4 {[%clk
0:00:46]} 19... Rb8 {[%clk 0:01:43]} 20. O-O-O {[%clk 0:00:44.4]} 20... Bg4
{[%clk 0:01:40.6]} 21. Rdg1 {[%clk 0:00:33.8]} 21... Be2 {[%clk 0:01:38.7]} 22.
Bb5 {[%clk 0:00:27.1]} 22... c6 {[%clk 0:01:34.2]} 23. Bxc6 {[%clk 0:00:21.4]}
23... Bxc4 {[%clk 0:01:24.6]} 24. Kb1 {[%clk 0:00:21.2]} 24... Rb6 {[%clk
0:01:15.7]} 25. d5 {[%clk 0:00:16.6]} 25... Rfb8 {[%clk 0:00:59.3]} 26. b4
{[%clk 0:00:17.7]} 26... axb4 {[%clk 0:00:59.3]} 27. a4 {[%clk 0:00:19.3]} 27...
b3 {[%clk 0:00:55.2]} 28. Kb2 {[%clk 0:00:19.5]} 28... Ba6 {[%clk 0:00:23.3]}
29. Rd1 {[%clk 0:00:17.3]} 29... g6 {[%clk 0:00:20.9]} 30. Rhe1 {[%clk
0:00:15.8]} 30... Kg7 {[%clk 0:00:21.8]} 31. Re7 {[%clk 0:00:16.4]} 31... Kf6
{[%clk 0:00:15.9]} 32. Rc7 {[%clk 0:00:16.4]} 32... Be2 {[%clk 0:00:14.1]} 33.
Rd4 {[%clk 0:00:16]} 33... h5 {[%clk 0:00:12.1]} 34. Rf4+ {[%clk 0:00:16.1]}
34... Ke5 {[%clk 0:00:11.9]} 35. Rfxf7 {[%clk 0:00:17]} 35... Bg4 {[%clk
0:00:11.5]} 36. a5 {[%clk 0:00:13.6]} 36... Rb4 {[%clk 0:00:04.8]} 37. a6 {[%clk
0:00:11.6]} 37... Rc4 {[%clk 0:00:05.8]} 38. Bb7 {[%clk 0:00:09.7]} 38... Rc2+
{[%clk 0:00:06.6]} 39. Rxc2 {[%clk 0:00:09.5]} 39... Bd1 {[%clk 0:00:08.5]} 40.
Rd2 {[%clk 0:00:09]} 1-0

[Event "*** Titled Tuesday Blitz"]
[Site "Chess.com"]
[Date "2018.10.02"]
[Round "1"]
[White "Koksik_13"]
[Black "ajkom197"]
[Result "1-0"]
[WhiteElo "2706"]
[BlackElo "2383"]
[TimeControl "180+2"]
[EndTime "13:08:55 PDT"]
[Termination "Koksik_13 won by resignation"]

1. e4 {[%clk 0:02:47.6]} 1... c6 {[%clk 0:03:00.7]} 2. d4 {[%clk 0:02:48.8]}
2... d5 {[%clk 0:02:59.8]} 3. Nc3 {[%clk 0:02:42.8]} 3... dxe4 {[%clk
0:03:00.5]} 4. Nxe4 {[%clk 0:02:44.2]} 4... Nd7 {[%clk 0:03:01.4]} 5. Nf3 {[%clk
0:02:43.7]} 5... Ngf6 {[%clk 0:03:01.8]} 6. Ng3 {[%clk 0:02:45.2]} 6... c5
{[%clk 0:03:02.2]} 7. Bd3 {[%clk 0:02:46.2]} 7... e6 {[%clk 0:03:02.3]} 8. O-O
{[%clk 0:02:46.8]} 8... Qc7 {[%clk 0:03:01.7]} 9. Qe2 {[%clk 0:02:47.4]} 9...
Be7 {[%clk 0:03:02.3]} 10. Rd1 {[%clk 0:02:48.4]} 10... O-O {[%clk 0:03:02.6]}
11. c4 {[%clk 0:02:49.3]} 11... a6 {[%clk 0:02:58.1]} 12. d5 {[%clk 0:02:50.2]}
12... exd5 {[%clk 0:02:55.2]} 13. Nf5 {[%clk 0:02:41.1]} 13... Bd6 {[%clk
0:02:52.5]} 14. cxd5 {[%clk 0:02:37.6]} 14... Re8 {[%clk 0:02:44.5]} 15. Qc2
{[%clk 0:02:36]} 15... Ne5 {[%clk 0:02:36.9]} 16. Nxd6 {[%clk 0:02:33.1]} 16...
Qxd6 {[%clk 0:02:36.6]} 17. Nxe5 {[%clk 0:02:33.8]} 17... Qxe5 {[%clk
0:02:31.9]} 18. g3 {[%clk 0:02:33.5]} 18... Bh3 {[%clk 0:02:23.9]} 19. Bf4
{[%clk 0:02:33.9]} 19... Qh5 {[%clk 0:02:19.9]} 20. Bf1 {[%clk 0:02:19.8]} 20...
Bxf1 {[%clk 0:02:13.9]} 21. Rxf1 {[%clk 0:02:20.1]} 21... Nxd5 {[%clk
0:02:12.1]} 22. Bd2 {[%clk 0:02:12.1]} 22... Re2 {[%clk 0:02:05.7]} 23. Rad1
{[%clk 0:02:08.2]} 23... Rae8 {[%clk 0:01:28.2]} 24. Qxc5 {[%clk 0:01:58.7]}
24... Qf3 {[%clk 0:01:16.8]} 25. Bc1 {[%clk 0:01:49.7]} 25... Nf6 {[%clk
0:01:12.6]} 26. Bf4 {[%clk 0:01:46.2]} 26... h5 {[%clk 0:01:04.7]} 27. Qc4
{[%clk 0:01:22.7]} 27... Rxf2 {[%clk 0:00:50.6]} 28. Rxf2 {[%clk 0:01:16.9]}
28... Qxd1+ {[%clk 0:00:51]} 29. Kg2 {[%clk 0:01:16.8]} 29... Qd5+ {[%clk
0:00:48.9]} 30. Qxd5 {[%clk 0:01:17.2]} 30... Nxd5 {[%clk 0:00:50.8]} 31. Bd6
{[%clk 0:01:10.2]} 31... f6 {[%clk 0:00:46.5]} 32. Rd2 {[%clk 0:01:09.9]} 32...
Ne3+ {[%clk 0:00:47.2]} 33. Kf3 {[%clk 0:01:08.6]} 33... Nc4 {[%clk 0:00:47.1]}
34. Rd4 {[%clk 0:01:09.4]} 34... Nxd6 {[%clk 0:00:41.1]} 35. Rxd6 {[%clk
0:01:10.6]} 35... Kf7 {[%clk 0:00:41.7]} 36. Rd5 {[%clk 0:01:07.7]} 36... g6
{[%clk 0:00:41.8]} 37. Rd4 {[%clk 0:01:08.8]} 37... Re7 {[%clk 0:00:42.6]} 38.
a4 {[%clk 0:01:08.5]} 38... g5 {[%clk 0:00:41.4]} 39. Rb4 {[%clk 0:01:08.8]}
39... b5 {[%clk 0:00:35]} 40. axb5 {[%clk 0:01:09.1]} 40... Rb7 {[%clk
0:00:35.4]} 41. b6 {[%clk 0:01:10.3]} 41... Ke6 {[%clk 0:00:33.6]} 42. Ke4
{[%clk 0:01:11.2]} 42... f5+ {[%clk 0:00:33.2]} 43. Kd4 {[%clk 0:01:08.3]} 43...
Kd6 {[%clk 0:00:34.1]} 44. Rb3 {[%clk 0:01:07.7]} 44... g4 {[%clk 0:00:25.4]}
45. Ke3 {[%clk 0:01:08.1]} 45... Ke5 {[%clk 0:00:25.4]} 46. Rb4 {[%clk
0:01:09.1]} 46... Ke6 {[%clk 0:00:22.3]} 47. Kf4 {[%clk 0:01:09.7]} 47... Kf6
{[%clk 0:00:23.5]} 48. Rb3 {[%clk 0:01:10.4]} 48... h4 {[%clk 0:00:14.5]} 49.
gxh4 {[%clk 0:01:11.1]} 49... Kg6 {[%clk 0:00:15.2]} 50. Rb4 {[%clk 0:01:11.4]}
50... a5 {[%clk 0:00:09.2]} 51. Rb5 {[%clk 0:01:11.9]} 51... a4 {[%clk
0:00:10.1]} 52. Rb4 {[%clk 0:01:10.7]} 52... Kf6 {[%clk 0:00:08.5]} 53. h5
{[%clk 0:01:11.5]} 53... Ke6 {[%clk 0:00:09.7]} 54. h6 {[%clk 0:01:11.9]} 54...
Kf6 {[%clk 0:00:10.7]} 55. h7 {[%clk 0:01:13.1]} 1-0